bitfinex-derivatives/quotes_BNBF0:USTF0_20250709
["timestamp","ask_amount","ask_price","bid_price","bid_amount"]
[1752043030262,1.689337,663.91,663.49,1.691662]
[1752043031965,1.689337,663.94,663.44,3.337662]
[1752043033367,1.689337,663.94,663.45,1.691662]
[1752043033862,1.689337,663.94,663.44,3.337662]
[1752043034263,1.689337,663.93,663.45,1.691662]
[1752043036269,1.689337,663.92,663.46,1.691662]
[1752043037369,1.689337,663.92,663.47,1.691662]
[1752043038365,1.689337,663.91,663.47,1.691662]
[1752043039168,1.689337,663.89,663.49,1.691662]
[1752043039571,1.689337,663.9,663.49,1.691662]
[1752043041067,1.689337,663.92,663.45,1.691662]
[1752043041966,1.689337,663.91,663.47,1.691662]
[1752043042872,1.689337,663.92,663.45,1.691662]
[1752043043073,1.6927679,663.92,663.45,1.6950923]
[1752043044674,1.6927679,663.92,663.44,1.6950923]
[1752043045368,1.6927679,663.92,663.45,1.6950923]
[1752043045674,1.6927679,663.92,663.46,1.352]
[1752043050974,1.6927679,663.91,663.46,3.0470923]
[1752043052277,1.6927679,663.92,663.46,1.352]
[1752043052478,1.6927679,663.96,663.47,1.6950923]
[1752043052978,1.6927679,663.96,663.48,1.6950923]
[1752043053880,1.6927679,663.95,663.5,1.6950923]
[1752043054277,1.6927679,663.95,663.49,1.6950923]
[1752043056981,1.6927679,663.95,663.46,1.352]
[1752043056982,1.6927679,663.97,663.47,1.6950923]
[1752043061480,1.6927679,663.93,663.46,1.352]
[1752043062184,1.6927679,663.91,663.46,1.352]
[1752043062481,1.6927679,663.92,663.46,1.352]
[1752043064185,1.6927679,663.91,663.46,1.352]
[1752043064586,1.6927679,663.91,663.45,1.6950923]
[1752043064888,1.6927679,663.91,663.46,1.6950923]
[1752043066788,1.6927679,663.88,663.5,1.6950923]
[1752043067390,1.6927679,663.88,663.51,1.6950923]
[1752043067989,1.6927679,663.87,663.51,1.6950923]
[1752043068786,1.6927679,663.88,663.52,1.484]
[1752043072192,1.6927679,663.89,663.52,1.484]
[1752043076896,1.6927679,663.9,663.52,1.484]
[1752043078998,1.6927679,663.89,663.52,1.484]
[1752043079695,1.6927679,663.89,663.48,1.6950923]
[1752043081895,1.6927679,663.88,663.5,1.6950923]
[1752043082603,1.6927679,663.88,663.51,1.757]
[1752043083299,1.6917844,663.88,663.51,1.757]
[1752043084904,1.6917844,663.91,663.51,1.757]
[1752043086709,1.6917844,663.9,663.51,1.757]
[1752043087106,1.6917844,663.91,663.51,1.757]
[1752043088911,0.26219923,664.01,663.51,1.757]
[1752043089205,1.69181509,663.91,663.51,1.757]
[1752043092111,1.69181509,663.92,663.51,1.757]
[1752043094817,1.69181509,663.9,663.51,1.757]
[1752043096711,1.69181509,663.89,663.51,1.757]
[1752043099321,1.69181509,663.88,663.51,1.757]
[1752043101818,1.69181509,663.9,663.51,1.757]
[1752043104422,1.69181509,663.89,663.51,1.757]
[1752043109324,1.69181509,663.88,663.51,1.757]
[1752043111830,1.69181509,663.86,663.53,1.69396223]
[1752043112331,1.69181509,663.85,663.54,1.69396223]
[1752043113830,1.69181509,663.87,663.51,1.757]
[1752043114728,1.69181509,663.88,663.51,1.757]
[1752043121934,1.69181509,663.89,663.51,1.757]
[1752043122136,1.69181509,663.86,663.51,1.757]
[1752043122629,1.69181509,663.87,663.51,1.757]
[1752043123736,1.69181509,663.86,663.51,1.757]
[1752043128339,1.69181509,663.85,663.51,1.757]
[1752043129343,1.69181509,663.86,663.51,1.757]
[1752043131845,1.69181509,663.84,663.51,1.757]
[1752043136848,1.69181509,663.87,663.51,1.757]
[1752043138346,0.26219923,664.01,663.51,1.757]
[1752043138347,1.69181509,663.86,663.51,1.757]
[1752043138550,1.69181509,663.86,663.44,1.69396223]
[1752043139246,1.69181509,663.87,663.42,1.69396223]
[1752043141848,1.69181509,663.88,663.4,1.69396223]
[1752043142353,1.69181509,663.88,663.41,1.931]
[1752043145154,1.69181509,663.89,663.41,1.931]
[1752043145351,1.69181509,663.88,663.41,1.931]
[1752043146052,1.69181509,663.89,663.41,1.931]
[1752043146752,1.69181509,663.87,663.41,3.62496223]
[1752043148354,1.69181509,663.88,663.41,3.62496223]
[1752043149162,1.69181509,663.87,663.43,1.69396223]
[1752043151663,1.69181509,663.85,663.45,1.69396223]
[1752043152260,1.69181509,663.86,663.44,1.69396223]
[1752043153366,1.69181509,663.85,663.46,1.69396223]
[1752043155969,1.69181509,663.84,663.46,1.69396223]
[1752043158172,1.69181509,663.84,663.47,1.69396223]
[1752043159575,2.2600039,663.94,663.37,2.2598378]
[1752043159774,1.6921442,663.84,663.47,1.6941171]
[1752043160269,1.6921442,663.83,663.47,1.6941171]
[1752043161971,1.6921442,663.86,663.44,1.6941171]
[1752043162772,1.6921442,663.86,663.45,1.834]
[1752043164173,1.6921442,663.85,663.45,1.834]
[1752043164472,1.6921442,663.85,663.45,3.5281171]
[1752043165877,1.6921442,663.85,663.45,1.834]
[1752043167275,2.2600039,663.98,663.45,1.834]
[1752043167475,1.6922981,663.86,663.45,1.834]
[1752043168278,1.6922981,663.85,663.45,1.834]
[1752043169979,1.6922981,663.86,663.45,1.834]
[1752043171780,0.26219923,664.01,663.45,1.834]
[1752043171781,1.6922981,663.84,663.46,1.6942344]
[1752043176082,1.6922981,663.86,663.45,1.834]
[1752043177285,1.6922981,663.85,663.45,1.834]
[1752043179787,1.6922981,663.84,663.45,3.5282344]
[1752043180188,1.6922981,663.85,663.45,3.5282344]
[1752043180385,1.6922981,663.84,663.46,1.6942344]
[1752043181890,1.6922981,663.85,663.45,1.834]
[1752043185989,1.6922981,663.84,663.45,3.5282344]
[1752043190287,1.6922981,663.84,663.46,1.6942344]
[1752043191992,1.6922981,663.82,663.49,1.6942344]
[1752043192390,1.6922981,663.82,663.5,1.6942344]
[1752043193295,1.6922981,663.81,663.5,1.6942344]
[1752043195590,1.6922981,663.81,663.45,1.834]
[1752043195591,1.6922981,663.82,663.49,1.6942344]
[1752043196294,1.6922981,663.84,663.46,1.6942344]
[1752043200898,1.6922981,663.85,663.45,3.5282344]
[1752043201595,1.6922981,663.85,663.45,1.834]
[1752043201993,1.6922981,663.86,663.45,1.834]
[1752043206100,1.6922981,663.85,663.45,3.5282344]
[1752043207902,1.6922981,663.85,663.45,1.834]
[1752043210604,1.6922981,663.86,663.45,1.834]
[1752043211504,1.6922981,663.85,663.45,1.834]
[1752043211906,1.6922981,663.84,663.46,1.6942344]
[1752043212804,1.6922981,663.84,663.45,3.5282344]
[1752043213010,1.6922981,663.85,663.45,3.5282344]
[1752043217812,1.6922981,663.84,663.45,3.5282344]
[1752043219307,1.6922981,663.84,663.46,1.6942344]
[1752043220508,1.6922981,663.83,663.47,1.6942344]
[1752043221911,1.6922981,663.85,663.45,1.6942344]
[1752043222607,1.6922981,663.84,663.45,1.6942344]
[1752043223109,1.6922981,663.84,663.46,1.6942344]
[1752043223813,1.6922981,663.84,663.47,2.161]
[1752043224414,1.6922981,663.87,663.47,2.161]
[1752043226414,1.6922981,663.86,663.47,2.161]
[1752043228511,1.6922981,663.96,663.47,2.161]
[1752043228718,1.6922981,663.82,663.47,2.161]
[1752043229316,1.6922981,663.84,663.47,2.161]
[1752043230217,1.6922981,663.85,663.47,2.161]
[1752043230617,1.6922981,663.84,663.47,2.161]
[1752043230917,1.95453092,663.84,663.47,2.161]
[1752043231114,1.6922981,663.83,663.47,2.161]
[1752043233117,1.95453092,663.84,663.47,2.161]
[1752043235318,0.26223282,663.84,663.47,2.161]
[1752043237022,0.26223282,663.84,663.18,0.26223183]
[1752043237023,1.6922981,663.72,663.2,1.6942344]
[1752043237318,1.6922981,663.73,663.2,1.6942344]
[1752043238117,1.6922981,663.74,663.2,1.6942344]
[1752043238322,1.6922981,663.73,663.2,1.6942344]
[1752043239221,0.26223282,663.84,663.19,1.6942344]
[1752043239222,1.6922981,663.74,663.19,1.6942344]
[1752043241019,1.6922981,663.74,663.2,1.862]
[1752043242125,1.6922981,663.75,663.2,1.862]
[1752043243125,1.6922981,663.74,663.2,1.862]
[1752043244222,1.6922981,663.75,663.2,1.862]
[1752043246727,0.26223282,663.84,663.2,1.862]
[1752043246728,1.6922981,663.74,663.2,3.5562344]
[1752043247227,1.6922981,663.74,663.2,1.862]
[1752043247824,1.6922981,663.74,663.2,3.5562344]
[1752043248127,1.6922981,663.74,663.2,1.862]
[1752043248325,1.6922981,663.75,663.2,1.862]
[1752043254229,1.6922981,663.76,663.2,1.862]
[1752043254630,1.6922981,663.74,663.2,1.862]
[1752043255224,1.6922981,663.75,663.2,1.862]
[1752043257030,1.6922981,663.72,663.2,1.862]
[1752043257228,1.6922981,663.73,663.2,1.862]
[1752043258132,1.6922981,663.72,663.2,1.862]
[1752043258328,1.6922981,663.71,663.2,1.862]
[1752043259033,1.6922981,663.61,663.2,1.862]
[1752043259234,1.6922981,663.62,663.2,1.862]
[1752043259429,1.6922981,663.61,663.2,1.862]
[1752043259730,1.6922981,663.63,663.2,1.862]
[1752043261337,1.6922981,663.65,663.2,1.862]
[1752043262538,1.6922981,663.66,663.2,1.862]
[1752043263436,1.6922981,663.67,663.2,1.862]
[1752043264339,1.6922981,663.68,663.2,1.862]
[1752043265232,2.52223672,663.84,663.2,1.862]
[1752043265233,1.6922981,663.69,663.2,1.862]
[1752043268242,1.6922981,663.7,663.2,1.862]
[1752043269039,1.6922981,663.69,663.2,1.862]
[1752043269442,1.6922981,663.7,663.2,1.862]
[1752043269642,0.26223282,663.84,663.2,1.862]
[1752043269643,1.6922981,663.66,663.2,1.862]
[1752043269843,1.6922981,663.68,663.2,1.862]
[1752043270341,1.6922981,663.67,663.2,1.862]
[1752043274039,1.6922981,663.68,663.2,1.862]
[1752043275146,1.6922981,663.67,663.2,1.862]
[1752043275448,2.2600039,663.8,663.2,1.862]
[1752043275743,1.6804275,663.67,663.2,1.862]
[1752043276845,1.6804275,663.69,663.2,1.862]
[1752043279748,1.6804275,663.68,663.2,1.862]
[1752043281153,1.6804275,663.67,663.2,1.862]
[1752043281453,1.6804275,663.68,663.2,1.862]
[1752043282254,1.6804275,663.67,663.2,1.862]
[1752043284357,1.6804275,663.66,663.2,1.862]
[1752043285256,1.6804275,663.65,663.2,1.862]
[1752043285556,0.26223282,663.84,663.2,1.862]
[1752043285557,1.6804275,663.66,663.2,1.862]
[1752043286355,1.6804275,663.65,663.2,1.862]
[1752043286850,1.6804275,663.63,663.2,1.862]
[1752043288157,1.6804275,663.62,663.2,1.862]
[1752043288953,1.6804275,663.63,663.2,1.862]
[1752043290253,1.6804275,663.62,663.2,1.862]
[1752043293157,1.6804275,663.61,663.2,1.862]
[1752043295157,1.6804275,663.6,663.2,1.862]
[1752043295361,1.6804275,663.59,663.2,1.862]
[1752043298258,1.6804275,663.58,663.2,1.862]
[1752043298866,1.6804275,663.56,663.2,1.862]
[1752043300965,1.6804275,663.56,662.92,1.684937]
[1752043301164,1.6804275,663.56,662.93,1.684937]
[1752043301971,1.6804275,663.59,662.9,0.26232771]
[1752043302168,1.6804275,663.58,662.9,0.26232771]
[1752043304373,1.6804275,663.57,662.9,0.26232771]
[1752043304776,1.6804275,663.59,662.9,0.26232771]
[1752043304973,1.6804275,663.59,662.91,1.949]
[1752043306279,1.6804275,663.58,662.91,1.949]
[1752043307075,1.6804275,663.57,662.91,1.949]
[1752043309183,1.6804275,663.56,662.91,1.949]
[1752043310078,1.6804275,663.55,662.91,1.949]
[1752043311284,1.6804275,663.54,662.91,1.949]
[1752043311782,1.6804275,663.53,662.92,1.684937]
[1752043312186,1.6804275,663.56,662.91,1.949]
[1752043313082,1.6804275,663.55,662.91,1.949]
[1752043314283,1.6804275,663.53,662.91,1.949]
[1752043314682,1.6804275,663.53,662.91,3.633937]
[1752043315284,1.6804275,663.51,662.92,1.684937]
[1752043316187,1.6804275,663.5,662.94,1.684937]
[1752043317189,1.6804275,663.49,662.95,1.684937]
[1752043318086,1.6804275,663.49,662.91,1.949]
[1752043318087,1.6804275,663.49,662.97,1.684937]
[1752043318290,1.6804275,663.47,662.97,1.684937]
[1752043319187,1.6804275,663.46,662.97,1.684937]
[1752043319690,1.6804275,663.46,662.91,1.949]
[1752043319691,1.6804275,663.46,662.98,1.684937]
[1752043322087,1.6804275,663.41,663.05,1.684937]
[1752043322688,1.6804275,663.42,663.04,1.684937]
[1752043323091,1.6804275,663.42,663.03,1.684937]
[1752043323290,1.6804275,663.56,662.91,1.949]
[1752043323689,1.6804275,663.59,662.91,1.949]
[1752043333199,1.6804275,663.51,662.97,1.684937]
[1752043337000,1.6804275,663.49,663.01,1.684937]
[1752043337401,1.6804275,663.48,663.01,1.684937]
[1752043337604,1.6804275,663.46,663.04,1.684937]
[1752043338105,1.6804275,663.46,663.05,1.684937]
[1752043339608,1.6804275,663.45,663.06,1.684937]
[1752043344507,1.6804275,663.45,663.07,1.684937]
[1752043344910,1.6804275,663.44,663.07,1.684937]
[1752043347312,1.6804275,663.44,663.08,1.684937]
[1752043348513,1.6804275,663.45,663.06,1.684937]
[1752043348707,2.2600039,663.58,662.93,2.2598378]
[1752043348911,1.6907258,663.45,663.06,1.6953971]
[1752043350615,2.2600039,663.57,662.94,2.2598378]
[1752043350914,2.2600039,663.57,662.91,1.949]
[1752043351116,3.3900058,663.7,662.91,1.949]
[1752043351513,0.26223282,663.84,662.91,1.949]
[1752043354216,2.2542978,663.6,662.91,1.949]
[1752043356017,2.2542978,663.6,663.04,1.6953864]
[1752043356217,2.2542978,663.6,662.91,1.949]
[1752043356218,1.6907234,663.47,662.91,1.949]
[1752043356517,0.26223282,663.84,662.91,1.949]
[1752043362020,0.26223282,663.84,662.9,0.26232771]
[1752043364327,0.26223282,663.84,662.91,1.916]
[1752043366230,0.26223282,663.84,663.08,1.6954563]
[1752043366231,1.6908117,663.44,663.08,1.6954563]
[1752043366526,0.26223282,663.84,662.91,1.916]
[1752043371228,1.6909167,663.45,663.06,1.6955804]
[1752043374235,1.6909167,663.44,663.07,1.6955804]
[1752043379033,1.6909167,663.44,663.08,1.6955804]
[1752043379938,1.6909167,663.43,663.09,1.6955804]
[1752043382341,1.6909167,663.42,663.1,1.6955804]
[1752043383042,1.6909167,663.46,663.1,1.6955804]
[1752043383240,1.6909167,663.46,663.11,1.6955804]
[1752043384243,1.6909167,663.46,663.1,1.6955804]
[1752043386646,1.6909167,663.47,663.1,1.6955804]
[1752043386945,2.2545556,663.58,663.1,1.6955804]
[1752043386946,1.6909167,663.46,663.1,1.6955804]
[1752043387245,1.6909167,663.47,663.1,1.6955804]
[1752043387448,1.6909167,663.48,663.08,1.6955804]
[1752043388242,1.6909167,663.48,663.07,1.6955804]
[1752043388446,1.6909167,663.48,663.07,1.6956696]
[1752043388447,1.6911426,663.48,663.07,1.6956696]
[1752043388744,2.2545556,663.61,662.94,2.2607739]
[1752043388945,1.6911426,663.48,663.08,1.6956696]
[1752043389549,1.6911426,663.48,663.07,1.6956696]
[1752043389845,1.6911426,663.48,663.08,1.6956696]
[1752043390045,1.6911426,663.49,663.08,1.6956696]
[1752043391250,1.6911426,663.49,663.07,1.6956696]
[1752043392951,1.6911426,663.48,663.08,1.6956696]
[1752043394249,2.2545556,663.61,662.96,2.2607739]
[1752043394454,1.690628,663.48,663.08,1.6954357]
[1752043395451,1.690628,663.49,663.08,1.6954357]
[1752043395850,1.690628,663.49,663.07,1.6954357]
[1752043396153,0.26223282,663.84,662.91,1.916]
[1752043396154,1.690628,663.5,663.08,1.6954357]
[1752043396854,1.690628,663.5,663.07,1.6954357]
[1752043397256,1.690628,663.49,663.09,1.6954357]
[1752043397550,1.690628,663.5,663.08,1.6954357]
[1752043398854,1.690628,663.51,663.07,1.6954357]
[1752043399151,1.690628,663.51,663.06,1.6954357]
[1752043399957,2.2545556,663.65,662.92,2.2607739]
[1752043400150,1.690447,663.51,663.06,1.6952092]
[1752043403659,1.690447,663.52,663.06,1.6952092]
[1752043404456,1.690447,663.51,663.06,1.6952092]
[1752043405257,1.690447,663.52,663.06,1.6952092]
[1752043405757,1.690447,663.51,663.07,1.6952092]
[1752043407357,0.26223282,663.84,662.9,0.26232771]
[1752043407358,1.690447,663.5,663.08,1.6952092]
[1752043407857,1.690447,663.5,663.09,1.534]
[1752043408760,1.690447,663.5,663.1,1.6952092]
[1752043408965,1.690447,663.49,663.1,1.6952092]
[1752043409259,1.690447,663.49,663.11,1.6952092]
[1752043413067,1.690447,663.6,663.16,1.6952092]
[1752043413267,1.690447,663.61,663.15,1.6952092]
[1752043413464,1.690447,663.65,663.19,1.6952092]
[1752043414268,1.690447,663.66,663.18,1.6952092]
[1752043415270,1.690447,663.66,663.17,1.6952092]
[1752043416267,1.690447,663.67,663.16,1.6952092]
[1752043417273,1.690447,663.68,663.16,1.6952092]
[1752043418269,1.690447,663.68,663.15,1.6952092]
[1752043419270,1.690447,663.69,663.15,1.6952092]
[1752043420274,1.690447,663.69,663.14,1.6952092]
[1752043422273,1.690447,663.7,663.14,1.6952092]
[1752043422876,1.690447,663.67,663.18,1.6952092]
[1752043423572,0.26223282,663.84,663.09,1.534]
[1752043423573,1.690447,663.69,663.15,1.6952092]
[1752043427283,1.690447,663.7,663.15,1.6952092]
[1752043427984,1.690447,663.71,663.13,1.6952092]
[1752043430983,1.690447,663.71,663.12,1.6952092]
[1752043431386,1.95275098,663.72,663.12,1.6952092]
[1752043433389,1.690447,663.71,663.13,1.6952092]
[1752043436293,1.690447,663.7,663.14,1.6952092]
[1752043437897,1.690447,663.69,663.16,1.6952092]
[1752043439198,1.690447,663.69,663.15,1.6952092]
[1752043440598,1.690447,663.69,663.16,1.6952092]
[1752043441299,1.690447,663.68,663.17,1.6952092]
[1752043442099,1.690447,663.69,663.16,1.6952092]
[1752043442300,1.690447,663.69,663.09,1.534]
[1752043442301,1.690447,663.69,663.15,1.6952092]
[1752043443598,1.690447,663.7,663.14,1.6952092]
[1752043445095,1.690447,663.7,663.15,1.6952092]
[1752043447398,1.690447,663.69,663.15,1.6952092]
[1752043448802,1.690447,663.7,663.14,1.6952092]
[1752043448998,1.690447,663.7,663.15,1.6952092]
[1752043449899,1.690447,663.71,663.13,1.6952092]
[1752043450403,1.690447,663.7,663.14,1.906]
[1752043451999,1.690447,663.7,663.14,3.6012092]
[1752043452299,1.690447,663.69,663.15,1.6952092]
[1752043456302,1.690447,663.69,663.16,1.6952092]
[1752043457102,1.690447,663.68,663.16,1.6952092]
[1752043458606,1.690447,663.68,663.17,1.6952092]
[1752043459010,1.690447,663.69,663.14,3.6012092]
[1752043459209,1.690447,663.7,663.14,3.6012092]
[1752043459406,1.690447,663.69,663.14,3.6012092]
[1752043459806,1.690447,663.69,663.15,1.6952092]
[1752043460509,1.690447,663.68,663.15,1.6952092]
[1752043461409,1.690447,663.68,663.16,1.6952092]
[1752043461609,1.690447,663.68,663.15,1.6952092]
[1752043462407,1.690447,663.68,663.16,1.6952092]
[1752043464312,1.690447,663.67,663.16,1.6952092]
[1752043464913,1.690447,663.68,663.16,1.6952092]
[1752043465314,1.690447,663.67,663.16,1.6952092]
[1752043466210,1.690447,663.67,663.17,1.6952092]
[1752043467210,1.690447,663.66,663.17,1.6952092]
[1752043468409,1.690447,663.66,663.18,1.6952092]
[1752043468814,1.690447,663.64,663.2,1.6952092]
[1752043469014,1.690447,663.64,663.14,1.906]
[1752043469015,1.690447,663.64,663.21,1.6952092]
[1752043469314,1.690447,663.63,663.21,1.6952092]
[1752043470211,1.690447,663.63,663.22,1.6952092]
[1752043471210,1.690447,663.62,663.23,1.6952092]
[1752043472315,1.690447,663.6,663.25,1.6952092]
[1752043473214,1.690447,663.59,663.26,1.6952092]
[1752043474815,1.690447,663.58,663.27,1.6952092]
[1752043520157,1.690447,663.59,663.26,1.6952092]
[1752043520457,1.690447,663.58,663.26,1.6952092]
[1752043520653,1.690447,663.59,663.26,1.6952092]
[1752043521458,1.690447,663.59,663.27,1.6952092]
[1752043522861,1.690447,663.6,663.25,1.6952092]
[1752043523160,1.690447,663.6,663.24,1.6952092]
[1752043523960,1.690447,663.61,663.24,1.6952092]
[1752043524266,1.690447,663.61,663.23,1.6952092]
[1752043526768,1.690447,663.62,663.23,1.6952092]
[1752043526968,1.690447,663.62,663.22,1.6952092]
[1752043527263,1.690447,663.66,663.26,1.6952092]
[1752043527463,1.690447,663.67,663.25,1.6952092]
[1752043527664,1.690447,663.67,663.25,3.6972092]
[1752043528268,1.690447,663.67,663.25,2.002]
[1752043530069,1.690447,663.67,663.25,3.6972092]
[1752043530469,1.690447,663.67,663.25,2.002]
[1752043531365,1.690447,663.68,663.25,2.002]
[1752043532765,1.690447,663.67,663.25,2.002]
[1752043532970,1.69047154,663.67,663.25,2.002]
[1752043533165,1.69047154,663.67,663.25,3.69692275]
[1752043534170,1.69047154,663.67,663.26,1.69492275]
[1752043536869,1.69047154,663.66,663.26,1.69492275]
[1752043537372,1.69047154,663.67,663.26,1.69492275]
[1752043537571,1.69047154,663.66,663.26,1.69492275]
[1752043537774,1.69047154,663.66,663.27,1.69492275]
[1752043538572,1.69047154,663.67,663.25,1.69492275]
[1752043538976,1.69047154,663.68,663.24,1.69492275]
[1752043539173,4.13584179,663.81,663.28,1.69492275]
[1752043539174,1.69047154,663.71,663.28,1.69492275]
[1752043539577,1.69047154,663.72,663.27,1.69492275]
[1752043540379,1.69047154,663.73,663.26,1.69492275]
[1752043541078,1.69047154,663.72,663.27,1.69492275]
[1752043541378,1.69047154,663.73,663.26,1.69492275]
[1752043541673,1.69047154,663.73,663.27,1.69492275]
[1752043541878,1.69047154,663.73,663.27,3.30292275]
[1752043542379,1.69047154,663.73,663.27,1.608]
[1752043542578,1.69047154,663.74,663.27,1.608]
[1752043546183,1.474,663.73,663.27,1.608]
[1752043548878,3.16447154,663.73,663.27,3.30292275]
[1752043549578,3.16447154,663.73,663.28,1.69492275]
[1752043552483,1.69047154,663.72,663.29,1.69492275]
[1752043554387,1.69047154,663.72,663.28,1.69492275]
[1752043554987,1.69047154,663.71,663.29,1.69492275]
[1752043555587,1.474,663.73,663.27,1.608]
[1752043555588,1.69047154,663.72,663.28,1.69492275]
[1752043565287,1.69047154,663.71,663.29,1.69492275]
[1752043573205,1.69047154,663.71,663.3,1.69492275]
[1752043574505,1.69047154,663.71,663.27,1.608]
[1752043574506,1.69047154,663.72,663.28,1.69492275]
[1752043576401,1.474,663.73,663.28,1.69492275]
[1752043576402,1.69047154,663.71,663.28,1.69492275]
[1752043577402,1.69047154,663.71,663.29,1.69492275]
[1752043580006,1.69047154,663.7,663.3,1.69492275]
[1752043581611,1.69047154,663.72,663.28,1.69492275]
[1752043581810,1.69047154,663.72,663.27,1.608]
[1752043581811,1.69047154,663.72,663.27,3.30292275]
[1752043583409,1.69047154,663.72,663.28,1.69492275]
[1752043583809,1.69047154,663.71,663.28,1.69492275]
[1752043584312,1.69047154,663.71,663.29,1.69492275]
[1752043584611,1.69047154,663.7,663.29,1.69492275]
[1752043588217,1.69047154,663.7,663.3,1.488]
[1752043588418,1.69047154,663.7,663.3,3.18292275]
[1752043591415,1.474,663.73,663.3,3.18292275]
[1752043591416,1.69047154,663.69,663.3,3.18292275]
[1752043591616,1.474,663.73,663.33,1.69492275]
[1752043591617,1.69047154,663.68,663.33,1.69492275]
[1752043593320,1.69047154,663.67,663.33,1.69492275]
[1752043598426,1.69047154,663.67,663.34,1.69492275]
[1752043598627,1.69047154,663.68,663.32,1.69492275]
[1752043603127,1.69047154,663.68,663.31,1.69492275]
[1752043603932,1.898,663.67,663.31,1.69492275]
[1752043605931,1.898,663.67,663.32,1.69492275]
[1752043606733,1.898,663.67,663.31,1.69492275]
[1752043607636,1.898,663.67,663.32,1.69492275]
[1752043608340,1.69047154,663.66,663.34,1.69492275]
[1752043610534,3.58847154,663.67,663.33,1.69492275]
[1752043611537,3.58847154,663.67,663.34,1.69492275]
[1752043611735,1.69047154,663.66,663.34,1.69492275]
[1752043612737,1.69047154,663.64,663.31,1.69492275]
[1752043613136,1.69047154,663.64,663.32,1.69492275]
[1752043613331,1.69047154,663.64,663.31,1.69492275]
[1752043616237,1.69047154,663.65,663.31,1.69492275]
[1752043616638,1.69047154,663.64,663.31,1.69492275]
[1752043617241,1.69047154,663.65,663.31,1.69492275]
[1752043618346,1.69047154,663.65,663.3,3.18292275]
[1752043627758,1.69047154,663.66,663.3,1.488]
[1752043628856,1.69047154,663.66,663.3,3.18292275]
[1752043630159,1.69047154,663.65,663.3,3.18292275]
[1752043630361,1.69047154,663.66,663.3,3.18292275]
[1752043632265,3.58847154,663.67,663.3,1.488]
[1752043637766,1.69047154,663.66,663.3,1.488]
[1752043639363,1.69047154,663.66,663.29,1.69492275]
[1752043642069,1.69047154,663.66,663.3,1.69492275]
[1752043642266,1.69047154,663.66,663.31,1.94]
[1752043644668,3.58847154,663.67,663.31,1.94]
[1752043653378,1.69047154,663.65,663.26,1.69492275]
[1752043653973,1.69047154,663.64,663.27,1.69492275]
[1752043654577,1.69047154,663.64,663.28,1.69492275]
[1752043655974,1.69047154,663.64,663.29,2.223]
[1752043660485,1.393,663.63,663.29,2.223]
[1752043676110,1.393,663.63,663.31,1.69492275]
[1752043676309,1.393,663.63,663.32,1.69492275]
[1752043676507,1.393,663.63,663.33,1.69492275]
[1752043678416,1.393,663.63,663.32,1.69492275]
[1752043686723,1.393,663.63,663.3,1.69492275]
[1752043694425,1.393,663.63,663.3,1.69416552]
[1752043694829,1.393,663.63,663.29,3.91716552]
[1752043695028,1.393,663.63,663.17,2.2607739]
[1752043695029,1.393,663.63,663.31,1.69416552]
[1752043697026,1.393,663.63,663.32,1.69416552]
[1752043697330,1.393,663.63,663.33,1.468]
[1752043706535,1.6893895,663.7,663.33,1.468]
[1752043708939,1.947,663.69,663.33,1.468]
[1752043715441,3.6363895,663.69,663.33,3.1622112]
[1752043716037,1.947,663.69,663.33,3.1622112]
[1752043716539,1.947,663.69,663.34,1.6942112]
[1752043717236,1.947,663.69,663.05,0.26227927]
[1752043717237,1.947,663.69,663.29,1.6942112]
[1752043719344,1.947,663.69,663.3,3.5562112]
[1752043721349,1.947,663.69,663.31,1.6942112]
[1752043722355,1.947,663.69,663.32,1.6942112]
[1752043722756,1.947,663.69,663.3,3.5562112]
[1752043723153,1.6893895,663.71,663.3,3.5562112]
[1752043723357,1.6893895,663.71,663.3,1.862]
[1752043725661,1.535,663.7,663.3,1.862]
[1752043727061,1.535,663.7,663.3,3.5562112]
[1752043727361,3.2243895,663.7,663.31,1.6942112]
[1752043732566,1.6893895,663.69,663.33,1.6942112]
[1752043733266,1.6893895,663.68,663.34,1.6942112]
[1752043736272,1.6893895,663.69,663.34,1.6942112]
[1752043736673,1.6893895,663.69,663.33,1.6942112]
[1752043736869,1.6893895,663.69,663.34,1.714]